lending/lending_fUSD_20250430
["ID","MTS","AMOUNT","RATE_DAILY","PERIOD"]
[359456789,1746031842585,-2068.0,0.0002734,2]
[359456790,1746031842595,-6746.0,0.0002734,2]
[359456791,1746031842604,-239.056,0.0002734,2]
[359456792,1746031842613,-263.24,0.0002734,2]
[359456793,1746031842622,-878.0,0.0002734,2]
[359456794,1746031842632,-875.0,0.0002734,2]
[359456795,1746031842641,-4001.0,0.0002734,2]
[359456796,1746031842651,-6076.46701227,0.00027342,2]
[359456797,1746031842661,-150.0,0.00027397,2]
[359456798,1746031842671,-150.33239199,0.00027397,2]
[359456799,1746031842680,-150.12328134,0.00027397,2]
[359456800,1746031842690,-150.0,0.00027397,2]
[359456801,1746031842700,-150.0,0.00027397,2]
[359456802,1746031842709,-500.0,0.00027397,2]
[359456803,1746031842719,-500.0,0.00027397,2]
[359456804,1746031842728,-500.0,0.00027397,2]
[359456805,1746031842738,-150.0,0.00027397,2]
[359456806,1746031842747,-202.42121256,0.00027397,2]
[359456807,1746031842757,-500.0,0.00027397,2]
[359456808,1746031842766,-150.0,0.00027397,2]
[359456809,1746031842775,-150.0,0.00027397,2]
[359456810,1746031842785,-500.0,0.00027397,2]
[359456811,1746031842794,-154.88032908,0.00027397,2]
[359456813,1746031842805,-150.0,0.00027397,2]
[359456814,1746031842816,-160.92343708,0.00027397,2]
[359456815,1746031842826,-500.0,0.00027397,2]
[359456816,1746031842835,-150.0,0.00027397,2]
[359456817,1746031842846,-150.0,0.00027397,2]
[359456818,1746031842855,-345.02709228,0.00027397,2]
[359456819,1746031842866,-500.0,0.00027397,2]
[359456820,1746031842875,-150.0,0.00027397,2]
[359456821,1746031842885,-500.0,0.00027397,2]
[359456822,1746031842896,-150.0,0.00027397,2]
[359456829,1746031843050,-150.0,0.00027397,2]
[359456830,1746031843060,-500.0,0.00027397,2]
[359456831,1746031843068,-153.43836195,0.00027397,2]
[359456832,1746031843076,-150.96411387,0.00027397,2]
[359456833,1746031843084,-150.0,0.00027397,2]
[359456834,1746031843092,-150.0,0.00027397,2]
[359456835,1746031843100,-153.74025997,0.00027397,2]
[359456836,1746031843108,-150.763708,0.00027397,2]
[359456837,1746031843116,-500.0,0.00027397,2]
[359456838,1746031843124,-150.83970176,0.00027397,2]
[359456839,1746031843133,-150.0,0.00027397,2]
[359456840,1746031843142,-158.0,0.00027397,2]
[359456841,1746031843152,-253.18,0.00027397,2]
[359456842,1746031843161,-414.99,0.00027397,2]
[359456843,1746031843170,-1105.24668313,0.000274,2]
[359456844,1746031843179,-150.0,0.00027424,2]
[359456845,1746031843188,-150.0,0.00027424,2]
[359456846,1746031843198,-500.0,0.00027424,2]
[359456847,1746031843207,-500.0,0.00027424,2]
[359456848,1746031843216,-500.0,0.00027424,2]
[359456849,1746031843226,-150.0,0.00027424,2]
[359456850,1746031843235,-647.74432468,0.00027424,2]
[359456851,1746031843244,-150.0,0.00027424,2]
[359456852,1746031843254,-256.09421529,0.00027424,2]
[359456853,1746031843263,-500.0,0.00027424,2]
[359456854,1746031843273,-151.58410143,0.00027424,2]
[359456855,1746031843283,-500.0,0.00027424,2]
[359456856,1746031843292,-152.86945876,0.00027424,2]
[359456857,1746031843303,-150.0,0.00027424,2]
[359456858,1746031843312,-500.0,0.00027424,2]
[359456859,1746031843321,-500.0,0.00027424,2]
[359456860,1746031843332,-248.34739861,0.00027424,2]
[359456861,1746031843341,-500.0,0.00027424,2]
[359456862,1746031843351,-153.61133087,0.00027424,2]
[359456863,1746031843360,-150.0,0.00027424,2]
[359456864,1746031843369,-500.0,0.00027424,2]
[359456865,1746031843379,-150.0,0.00027424,2]
[359456866,1746031843387,-299.61862379,0.00027452,2]
[359456867,1746031843397,-200.69107817,0.00027452,2]
[359456868,1746031843407,-159.50129142,0.00027452,2]
[359456869,1746031843416,-500.0,0.00027452,2]
[359456870,1746031843425,-500.0,0.00027452,2]
[359456871,1746031843434,-200.0,0.00027452,2]
[359456872,1746031843443,-150.0,0.00027452,2]
[359456873,1746031843452,-512.9864985,0.00027452,2]
[359456874,1746031843461,-313.3032493,0.00027452,2]
[359456875,1746031843471,-150.0,0.00027452,2]
[359456876,1746031843480,-401.08104489,0.00027452,2]
[359456877,1746031843489,-500.0,0.00027452,2]
[359456878,1746031843498,-500.0,0.00027452,2]
[359456879,1746031843508,-150.0,0.00027452,2]
[359456880,1746031843517,-301.51232987,0.00027452,2]
[359456881,1746031843527,-200.95864855,0.00027452,2]
[359456882,1746031843536,-500.0,0.00027479,2]
[359456884,1746031843545,-500.0,0.00027479,2]
[359456886,1746031843554,-150.0,0.00027479,2]
[359456887,1746031843563,-150.0,0.00027479,2]
[359456888,1746031843572,-500.0,0.00027479,2]
[359456889,1746031843583,-513.33743987,0.00027479,2]
[359456890,1746031843592,-265.00646954,0.00027479,2]
[359456891,1746031843602,-604.59486161,0.00027507,2]
[359456893,1746031843612,-500.0,0.00027507,2]
[359456894,1746031843621,-150.0,0.00027507,2]
[359456895,1746031843630,-150.0,0.00027507,2]
[359456896,1746031843639,-500.0,0.00027507,2]
[359456897,1746031843649,-3636.55849887,0.00027521,7]
[359456898,1746031843659,-500.0,0.00027534,2]
[359456899,1746031843668,-150.0,0.00027534,2]
[359456900,1746031843678,-157.24282809,0.00027534,2]
[359456901,1746031843688,-500.0,0.00027534,2]
[359456902,1746031843697,-500.0,0.00027561,2]
[359456903,1746031843707,-164.47204856,0.00027561,2]
[359456904,1746031843716,-500.0,0.00027589,2]
[359456905,1746031843726,-500.0,0.00027616,2]
[359456906,1746031843735,-500.0,0.00027644,2]
[359456907,1746031843744,-500.0,0.00027671,2]
[359456908,1746031843754,-500.0,0.00027698,2]
[359456909,1746031843763,-34457.0,0.000277,2]
[359456910,1746031843772,-500.0,0.00027726,2]
[359456911,1746031843781,-500.0,0.00027753,2]
[359456912,1746031843791,-500.0,0.00027781,2]
[359456913,1746031843801,-500.0,0.00027808,2]
[359456914,1746031843813,-500.0,0.00027835,2]
[359456915,1746031843822,-500.0,0.00027863,2]
[359456916,1746031843833,-362.82471418,0.0002789,2]
[359456917,1746031843843,-2000.0,0.00028,4]
[359456918,1746031843852,-164.43,0.00028068,2]
[359456919,1746031843862,-257.91778498,0.00028167,2]
[359456920,1746031843873,-151.0,0.00028168,2]
[359456921,1746031843885,-5568.0,0.000282,3]
[359456922,1746031843894,-1375.22,0.00028231,2]
[359456923,1746031843904,-1000.0,0.00028253,2]
[359456924,1746031843913,-3636.55849887,0.00028348,7]
[359456925,1746031843923,-750.0,0.000284,2]
[359456926,1746031843933,-150.0,0.00028767,2]
[359456927,1746031843942,-253.18,0.00028767,2]
[359456928,1746031843951,-5568.0,0.000288,5]
[359456929,1746031843961,-622.0,0.00028967,2]
[359456930,1746031843972,-6780.97494283,0.00029,2]
[359456931,1746031843983,-54897.35590166,0.00029,2]
[359456932,1746031843992,-386.71438195,0.00029,6]
[359456933,1746031844003,-260.27172266,0.00029,2]
[359456934,1746031844013,-550.0,0.00029,2]
[359456935,1746031844023,-164.43,0.00029148,2]
[359456936,1746031844032,-3636.55849887,0.00029176,8]
[359456937,1746031844042,-251.78764946,0.00029352,2]
[359456938,1746031844051,-500.0,0.00029507,2]
[359456939,1746031844061,-267.46074303,0.00029536,2]
[359456940,1746031844071,-151.0,0.00029537,2]
[359456941,1746031844081,-15000.0,0.0003,2]
[359456942,1746031844091,-1158.44044072,0.0003,10]
[359456943,1746031844100,-1246.41755291,0.0003,2]
[359456944,1746031844110,-200.0,0.0003,2]
[359456945,1746031844119,-3636.55849887,0.00030003,9]
[359456946,1746031844129,-150.0,0.00030136,2]
[359456947,1746031844138,-150.44,0.00030137,2]
[359456948,1746031844147,-253.18,0.00030137,2]
[359456949,1746031844157,-1000.0,0.00030137,5]
[359456950,1746031844167,-150.0,0.00030137,2]
[359456951,1746031844176,-5135.10228457,0.00030174,2]
[359456952,1746031844186,-1000.0,0.00030274,30]
[359456953,1746031844195,-1339.0,0.0003034,2]
[359456954,1746031844204,-922.0,0.0003034,2]
[359456955,1746031844214,-1289.0,0.0003034,2]
[359456956,1746031844223,-797.0,0.0003034,2]
[359456957,1746031844233,-913.0,0.0003034,2]
[359456958,1746031844242,-580.0,0.0003034,2]
[359456959,1746031844251,-549.0,0.0003034,2]
[359456960,1746031844261,-1449.0,0.0003034,2]
[359456961,1746031844270,-2068.0,0.0003034,2]
[359456962,1746031844279,-6746.0,0.0003034,2]
[359456963,1746031844289,-153.0,0.0003034,2]
[359456964,1746031844299,-878.0,0.0003034,2]
[359456965,1746031844309,-875.0,0.0003034,2]
[359456966,1746031844319,-4001.0,0.0003034,2]
[359456967,1746031844330,-1000.0,0.00030352,5]
[359456968,1746031844339,-1000.0,0.00030352,5]
[359456969,1746031844348,-1000.0,0.00030352,5]
[359456970,1746031844357,-1000.0,0.00030352,5]
[359456971,1746031844366,-500.0,0.00030352,5]
[359456972,1746031844375,-150.0,0.00030411,2]
[359456973,1746031844384,-150.0,0.00030411,2]
[359456974,1746031844393,-1152.99,0.00030411,2]
[359456975,1746031844403,-150.0,0.00030411,2]
[359456976,1746031844412,-900.75,0.00030411,2]
[359456977,1746031844421,-1152.99,0.00030411,2]
[359456978,1746031844430,-451.24,0.00030411,2]
[359456979,1746031844440,-150.0,0.00030411,2]
[359456980,1746031844449,-1152.99,0.00030411,2]
[359456981,1746031844459,-451.24,0.00030411,2]
[359456982,1746031844468,-351.81,0.00030411,2]
[359456983,1746031844477,-162.11,0.00030411,2]
[359456984,1746031844486,-451.24,0.00030411,2]
[359456985,1746031844495,-351.81,0.00030411,2]
[359456986,1746031844503,-1179.8,0.00030411,2]
[359456987,1746031844512,-351.81,0.00030411,2]
[359456988,1746031844521,-162.11,0.00030411,2]
[359456989,1746031844530,-1000.0,0.00030411,30]
[359456990,1746031844540,-1375.22,0.00030495,2]
[359456991,1746031844549,-1000.0,0.00030548,30]
[359456992,1746031844558,-1000.0,0.00030685,30]
[359456993,1746031844568,-1000.0,0.00030685,30]
[359456994,1746031844579,-1000.0,0.00030822,30]
[359456995,1746031844588,-3636.55849887,0.00030831,9]
[359456996,1746031844598,-277.35679052,0.00030905,2]
[359456997,1746031844607,-151.0,0.00030906,2]
[359456998,1746031844616,-1000.0,0.00030959,30]
[359456999,1746031844625,-600.0,0.00031,2]
[359457000,1746031844634,-1000.0,0.00031096,30]
[359457001,1746031844643,-500.0,0.00031096,5]
[359457002,1746031844652,-500.0,0.00031096,5]
[359457003,1746031844662,-1000.0,0.00031096,5]
[359457004,1746031844671,-162.11,0.00031233,2]
[359457005,1746031844680,-150.0,0.00031233,2]
[359457006,1746031844689,-162.11,0.00031233,2]
[359457007,1746031844698,-150.0,0.00031233,2]
[359457008,1746031844707,-150.0,0.00031233,2]
[359457009,1746031844717,-150.0,0.00031233,2]
[359457010,1746031844726,-1000.0,0.00031233,30]
[359457011,1746031844735,-1000.0,0.00031233,30]
[359457012,1746031844744,-1000.0,0.0003137,30]
[359457013,1746031844753,-150.0,0.00031377,2]
[359457014,1746031844762,-304.21675482,0.000314,30]
[359457015,1746031844771,-150.0,0.00031506,2]
[359457016,1746031844781,-253.18,0.00031507,2]
[359457017,1746031844790,-1000.0,0.00031507,30]
[359457018,1746031844799,-1000.0,0.00031644,30]
[359457019,1746031844810,-3636.55849887,0.00031659,10]
[359457020,1746031844820,-1000.0,0.00031781,30]
[359457021,1746031844829,-1000.0,0.00031781,30]
[359457022,1746031844838,-150.0,0.00031808,2]
[359457023,1746031844848,-746.0,0.00031863,3]
[359457024,1746031844858,-1000.0,0.00031918,30]
[359457025,1746031844868,-257.753265,0.00031918,7]
[359457026,1746031844878,-151.0,0.00031918,7]
[359457027,1746031844889,-151.0,0.00031918,7]
[359457028,1746031844898,-1002.75607551,0.00031952,5]
[359457029,1746031844907,-501.83391418,0.00031952,5]
[359457030,1746031844916,-150.0,0.00031963,2]
[359457031,1746031844926,-150.0,0.00031995,2]
[359457032,1746031844935,-387155.07958604,0.00032,15]
[359457033,1746031844944,-151.0,0.00032,7]
[359457034,1746031844955,-151.0,0.00032,7]
[359457035,1746031844964,-151.0,0.00032,7]
[359457036,1746031844974,-172.364935,0.00032,7]
[359457037,1746031844984,-171.296414,0.00032,7]
[359457038,1746031844994,-151.0,0.00032,7]
[359457039,1746031845005,-151.0,0.00032,7]
[359457040,1746031845016,-584.251059,0.00032,7]
[359457041,1746031845025,-584.251059,0.00032,7]
[359457042,1746031845034,-2000.0,0.00032,4]
[359457043,1746031845044,-1000.0,0.00032055,30]
[359457044,1746031845055,-150.0,0.00032147,2]
[359457045,1746031845064,-150.0,0.00032173,2]
[359457046,1746031845074,-1000.0,0.00032192,30]
[359457047,1746031845085,-150.0,0.00032195,2]
[359457048,1746031845094,-287.61899177,0.00032274,2]
[359457049,1746031845104,-151.0,0.00032275,2]
[359457050,1746031845114,-1000.0,0.00032329,30]
[359457051,1746031845123,-1000.0,0.00032329,30]
[359457052,1746031845133,-150.0,0.0003237,2]
[359457053,1746031845143,-150.0,0.00032388,2]
[359457054,1746031845152,-150.0,0.00032461,2]
[359457055,1746031845162,-150.0,0.00032463,2]
[359457056,1746031845171,-1000.0,0.00032466,30]
[359457057,1746031845180,-150.0,0.0003247,2]
[359457058,1746031845190,-150.0,0.00032471,2]
[359457059,1746031845199,-3636.55849887,0.00032486,10]
[359457060,1746031845208,-251.78764946,0.00032503,2]
[359457061,1746031845218,-150.0,0.00032567,2]
[359457062,1746031845227,-150.0,0.00032597,2]
[359457063,1746031845376,-1000.0,0.00032603,30]
[359457064,1746031845386,-1000.0,0.00032647,2]
[359457065,1746031845396,-150.0,0.00032671,2]
[359457066,1746031845406,-150.0,0.00032672,2]
[359457067,1746031845416,-150.0,0.00032727,2]
[359457068,1746031845426,-1000.0,0.0003274,30]
[359457069,1746031845435,-150.0,0.00032744,2]
[359457070,1746031845444,-150.0,0.00032744,2]
[359457071,1746031845454,-1375.22,0.00032759,2]
[359457072,1746031845464,-150.0,0.00032763,2]
[359457073,1746031845473,-150.0,0.00032806,2]
[359457074,1746031845483,-150.0,0.00032807,2]
[359457075,1746031845493,-150.0,0.0003281,2]
[359457076,1746031845502,-150.0,0.00032828,2]
[359457077,1746031845512,-154.361751,0.00032876,7]
[359457078,1746031845523,-152.234246,0.00032876,7]
[359457079,1746031845534,-151.0,0.00032876,7]
[359457080,1746031845545,-151.0,0.00032876,7]
[359457081,1746031845555,-253.933853,0.00032876,7]
[359457082,1746031845565,-151.0,0.00032876,7]
[359457083,1746031845575,-151.0,0.00032876,7]
[359457084,1746031845586,-415.844051,0.00032876,7]
[359457085,1746031845596,-415.844051,0.00032876,7]
[359457086,1746031845604,-151.0,0.00032876,7]
[359457087,1746031845614,-151.0,0.00032876,7]
[359457088,1746031845623,-151.0,0.00032876,7]
[359457089,1746031845632,-161.972147,0.00032876,7]
[359457090,1746031845641,-151.60603367,0.00032876,2]
[359457091,1746031845650,-173.0,0.00032877,2]
[359457092,1746031845661,-403.0,0.00032877,2]
[359457093,1746031845675,-253.18,0.00032877,2]
[359457094,1746031845686,-175.0,0.00032877,2]
[359457095,1746031845697,-1000.0,0.00032877,30]
[359457096,1746031845707,-1000.0,0.00032877,30]
[359457097,1746031845716,-500.0,0.00032877,2]
[359457098,1746031845726,-152.94478008,0.00032877,60]
[359457099,1746031845736,-500.0,0.00032904,2]
[359457100,1746031845746,-500.0,0.00032932,2]
[359457101,1746031845755,-151.0,0.00032932,7]
[359457102,1746031845765,-151.0,0.00032932,7]
[359457103,1746031845774,-500.0,0.00032959,2]
[359457104,1746031845784,-154.846212,0.00032969,7]
[359457105,1746031845794,-154.988574,0.00032969,7]
[359457107,1746031845804,-435.740828,0.00032969,7]
[359457109,1746031845816,-435.740828,0.00032969,7]
[359457110,1746031845825,-500.0,0.00032987,2]
[359457111,1746031845836,-1173.42281616,0.00033,2]
[359457112,1746031845846,-508.25,0.00033,120]
[359457113,1746031845855,-508.25,0.00033,120]
[359457114,1746031845866,-650.0,0.00033,2]
[359457115,1746031845875,-500.0,0.00033014,2]
[359457116,1746031845886,-500.0,0.00033041,2]
[359457117,1746031845896,-311.01762151,0.00033069,2]
[359457118,1746031845907,-216.76347815,0.000331,2]
[359457119,1746031845917,-414.99,0.00033165,2]
[359457120,1746031845927,-168.829307,0.00033216,30]
[359457121,1746031845937,-508.25,0.000333,120]
[359457122,1746031845947,-508.25,0.000333,120]
[359457123,1746031845956,-3636.55849887,0.00033314,11]
[359457124,1746031845965,-1339.0,0.0003334,2]
[359457125,1746031845975,-922.0,0.0003334,2]
[359457126,1746031845984,-1289.0,0.0003334,2]
[359457127,1746031845994,-797.0,0.0003334,2]
[359457128,1746031846003,-913.0,0.0003334,2]
[359457129,1746031846012,-580.0,0.0003334,2]
[359457130,1746031846022,-549.0,0.0003334,2]
[359457131,1746031846031,-1449.0,0.0003334,2]
[359457132,1746031846041,-2068.0,0.0003334,2]
[359457133,1746031846050,-6746.0,0.0003334,2]
[359457134,1746031846059,-153.0,0.0003334,2]
[359457135,1746031846069,-878.0,0.0003334,2]
[359457136,1746031846078,-528.954,0.0003334,2]
[359457137,1746031846088,-4001.0,0.0003334,2]
[359457138,1746031846098,-151.0,0.0003334,7]
[359457139,1746031846108,-155.808902,0.0003334,7]
[359457140,1746031846117,-151.0,0.0003334,7]
[359457141,1746031846127,-151.0,0.0003334,7]
[359457142,1746031846136,-293.866633,0.0003334,7]
[359457143,1746031846146,-293.866633,0.0003334,7]
[359457144,1746031846156,-151.0,0.0003334,7]
[359457145,1746031846166,-151.0,0.0003334,7]
[359457146,1746031846175,-151.0,0.0003334,7]
[359457147,1746031846185,-151.0,0.0003334,7]
[359457148,1746031846194,-1000.0,0.00033425,30]
[359457149,1746031846203,-1170.10002796,0.000335,2]
[359457150,1746031846213,-151.0,0.000335,7]
[359457151,1746031846223,-151.0,0.000335,7]
[359457152,1746031846232,-151.0,0.000335,7]
[359457153,1746031846241,-1358.115401,0.000335,7]
[359457154,1746031846251,-1358.115401,0.000335,7]
[359457155,1746031846260,-151.0,0.000335,7]
[359457156,1746031846270,-151.0,0.000335,7]
[359457157,1746031846279,-1103.105468,0.000335,7]
[359457158,1746031846289,-200.855988,0.000335,7]
[359457159,1746031846298,-1103.105468,0.000335,7]
[359457160,1746031846308,-200.855988,0.000335,7]
[359457161,1746031846317,-155.221886,0.000335,7]
[359457162,1746031846327,-298.26089446,0.00033643,2]
[359457163,1746031846341,-151.0,0.00033644,2]
[359457164,1746031846350,-508.25,0.000337,120]
[359457165,1746031846360,-508.25,0.000337,120]
[359457166,1746031846370,-150.44,0.00033904,2]
[359457167,1746031846380,-500.0,0.00033946,120]
[359457168,1746031846389,-1000.0,0.00033973,30]
[359457169,1746031846399,-2032.23191869,0.00034,2]
[359457171,1746031846408,-508.25,0.00034,120]
[359457173,1746031846418,-508.25,0.00034,120]
[359457175,1746031846427,-151.220577,0.00034,7]
[359457177,1746031846437,-151.0,0.00034,7]
[359457179,1746031846446,-151.0,0.00034,7]
[359457181,1746031846456,-151.0,0.00034,7]
[359457183,1746031846465,-260.79692,0.00034,7]
[359457185,1746031846475,-260.79692,0.00034,7]
[359457187,1746031846484,-151.0,0.00034,7]
[359457189,1746031846493,-500.615249,0.00034,7]
[359457190,1746031846503,-151.0,0.00034,7]
[359457192,1746031846512,-500.615249,0.00034,7]
[359457194,1746031846521,-151.0,0.00034,7]
[359457196,1746031846531,-157.59,0.00034,2]
[359457198,1746031846541,-3636.55849887,0.00034141,11]
[359457200,1746031846551,-508.25,0.000343,120]
[359457202,1746031846560,-508.25,0.000343,120]
[359457204,1746031846570,-1000.0,0.00034521,30]
[359457206,1746031846581,-150.0,0.00034548,10]
[359457208,1746031846591,-508.25,0.000346,120]
[359457210,1746031846600,-508.25,0.000346,120]
[359457212,1746031846610,-168.829307,0.00034621,2]
[359457214,1746031846619,-151.0,0.00034693,7]
[359457216,1746031846628,-151.0,0.00034693,7]
[359457218,1746031846638,-154.073553,0.00034693,7]
[359457219,1746031846648,-508.25,0.000349,120]
[359457221,1746031846660,-508.25,0.000349,120]
[359457223,1746031846669,-3636.55849887,0.00034969,12]
[359457225,1746031846679,-15000.0,0.00035,10]
[359457226,1746031846688,-558.25302769,0.00035,30]
[359457227,1746031846698,-700.0,0.00035,2]
[359457228,1746031846707,-888.0,0.00035,5]
[359457229,1746031846717,-152.0,0.00035005,3]
[359457230,1746031846727,-309.29654756,0.00035012,2]
[359457231,1746031846737,-151.0,0.00035013,2]
[359457232,1746031846747,-1375.22,0.00035023,2]
[359457233,1746031846757,-206.0,0.0003505,2]
[359457234,1746031846766,-450.0,0.0003505,3]
[359457235,1746031846776,-1000.0,0.00035068,30]
[359457236,1746031846785,-246.35,0.00035068,2]
[359457237,1746031846795,-508.25,0.000353,120]
[359457238,1746031846805,-508.25,0.000353,120]
[359457239,1746031846816,-800.95,0.00035452,2]
[359457240,1746031846825,-579.8,0.00035452,2]
[359457241,1746031846834,-800.95,0.00035452,2]
[359457242,1746031846843,-163.14766298,0.00035471,5]
[359457243,1746031846852,-508.26,0.000356,120]
[359457244,1746031846861,-508.25,0.000356,120]
[359457245,1746031846871,-1000.0,0.00035616,30]
[359457246,1746031846881,-12500.0,0.00035616,5]
[359457247,1746031846894,-231.605,0.00035616,30]
[359457248,1746031846904,-500.0,0.00035616,2]
[359457249,1746031846914,-500.0,0.00035616,7]
[359457250,1746031846923,-251.78764946,0.00035653,2]
[359457251,1746031846933,-3636.55849887,0.00035797,12]
[359457252,1746031846943,-168.829307,0.00035808,60]
[359457253,1746031846952,-151.0,0.0003589,7]
[359457254,1746031846962,-151.0,0.0003589,7]
[359457255,1746031846971,-508.25,0.000359,120]
[359457256,1746031846981,-33672.43129103,0.0003593,7]
[359457257,1746031847552,-776.8573885,0.0003593,7]
[359457258,1746031847561,-92.48358524,0.00036,120]
[359457259,1746031847573,-907.51641476,0.00036,120]
[359457260,1746031847583,-8460.99824551,0.00036,2]
[359457261,1746031847613,-495.41477326,0.00036,2]
[359457262,1746031847625,-444.29999996,0.00036,2]
[359457263,1746031847655,-1433.3058283,0.00036,2]
[359457264,1746031848335,-1942.72219132,0.00024816,2]
[359457265,1746031848345,-47839.03739023,0.00036,2]
[359457266,1746031848355,-2000.0,0.00036,4]
[359457267,1746031848364,-519.3855246,0.00036,20]
[359457268,1746031848374,-500.0,0.00036046,120]
[359457269,1746031848383,-500.0,0.00036164,60]
[359457270,1746031848392,-500.0,0.00036164,60]
[359457271,1746031848401,-508.25,0.000362,120]
[359457272,1746031848411,-206.0,0.0003622,2]
[359457273,1746031848420,-1339.0,0.0003634,2]
[359457274,1746031848429,-922.0,0.0003634,2]
[359457275,1746031848438,-1149.202,0.0003634,2]
[359457276,1746031848447,-797.0,0.0003634,2]
[359457277,1746031848456,-913.0,0.0003634,2]
[359457278,1746031848466,-580.0,0.0003634,2]
[359457279,1746031848475,-549.0,0.0003634,2]
[359457280,1746031848484,-416.779,0.0003634,2]
[359457281,1746031848493,-6746.0,0.0003634,2]
[359457282,1746031848503,-153.0,0.0003634,2]
[359457283,1746031848512,-878.0,0.0003634,2]
[359457284,1746031848521,-4001.0,0.0003634,2]
[359457285,1746031848530,-151.0,0.0003634,7]
[359457286,1746031848539,-320.74051982,0.00036381,2]
[359457287,1746031848548,-151.0,0.00036382,2]
[359457288,1746031848557,-800.95,0.00036466,2]
[359457289,1746031848566,-949.91411853,0.00036498,120]
[359457290,1746031848576,-197.055923,0.00036498,7]
[359457291,1746031848586,-197.055923,0.00036498,7]
[359457292,1746031848595,-151.0,0.00036498,7]
[359457293,1746031848604,-167.903956,0.00036498,7]
[359457294,1746031848614,-179.326741,0.00036498,7]
[359457295,1746031848623,-179.326741,0.00036498,7]
[359457296,1746031848633,-500.0,0.00036499,10]
[359457297,1746031848643,-94065.56114416,0.000365,5]
[359457298,1746031848655,-43421.32295764,0.000365,5]
[359457299,1746031848664,-508.25,0.000366,120]
[359457300,1746031848674,-3636.55849887,0.00036624,13]
[359457301,1746031848683,-152.0,0.00036642,4]
[359457302,1746031848693,-508.25,0.000369,120]
[359457303,1746031848702,-19606.55846136,0.00036975,2]
[359457304,1746031849528,-350.0,0.00027339,2]
[359457305,1746031849549,-274.0,0.00027339,2]
[359457306,1746031849558,-1235.677,0.0002734,2]
[359457307,1746031849567,-351.81,0.00030411,2]
[359457308,1746031849576,-5696.93076409,0.00036975,2]
[359457309,1746031849589,-1164.00608359,0.00036975,2]
[359457310,1746031849601,-1142.48127422,0.00036975,2]
[359457311,1746031849613,-39699.64525605,0.00036975,2]
[359457312,1746031849625,-5995.50257779,0.00036975,2]
[359457313,1746031849637,-6063.71154672,0.00036975,2]
[359457314,1746031849654,-916.83806527,0.00036975,2]
[359457315,1746031849674,-1138.0,0.0003034,2]
[359457316,1746031849684,-6411.31298404,0.00036975,2]
[359457317,1746031849698,-1770.59999994,0.00036975,2]
[359457318,1746031849793,-1753.70282576,0.00036975,2]
[359457321,1746031967693,426.0,0.00032876,60]
[359457322,1746032467891,6336.126513,7.945e-05,2]
[359457323,1746032703777,182.06382512,0.00019215,2]
[359457341,1746032927508,250.0,0.00017,2]
[359457342,1746032928618,300.0,0.00019,2]
[359457370,1746033032120,-163.022522,0.00019687,2]
[359457371,1746033032136,-289.3472726,0.00019786,2]
[359457372,1746033032171,-577.72097877,0.00019786,2]
[359457373,1746033032184,-476.7944,0.000198,2]